fUSD/lending_fUSD_20251014
["ID","MTS","AMOUNT","RATE_DAILY","PERIOD"]
[391258712,1760446232572,-151.0,0.00016063,2]
[391258714,1760446232581,-151.0,0.00016063,2]
[391258716,1760446232591,-151.0,0.00016063,2]
[391258718,1760446232601,-151.0,0.00016063,2]
[391258719,1760446232610,-500.0,0.00016063,2]
[391258721,1760446232619,-156.00597313,0.00016063,2]
[391258722,1760446232632,-500.0,0.00016063,2]
[391258723,1760446232641,-151.0,0.00016063,2]
[391258724,1760446232651,-500.0,0.00016063,2]
[391258725,1760446232660,-151.0,0.00016063,2]
[391258726,1760446232670,-500.0,0.00016063,2]
[391258727,1760446232679,-151.0,0.00016063,2]
[391258728,1760446232688,-160.15730937,0.00016063,2]
[391258729,1760446232698,-151.0,0.00016063,2]
[391258730,1760446232707,-151.0,0.00016063,2]
[391258731,1760446232716,-151.0,0.00016063,2]
[391258732,1760446232725,-151.0,0.00016063,2]
[391258733,1760446232735,-151.0,0.00016063,2]
[391258734,1760446232750,-151.0,0.00016063,2]
[391258735,1760446232759,-9999.99,0.00016063,2]
[391258736,1760446232769,-151.0,0.00016063,2]
[391258737,1760446232779,-151.0,0.00016063,2]
[391258738,1760446232796,-151.0,0.00016063,2]
[391258739,1760446232807,-151.0,0.00016063,2]
[391258740,1760446232817,-151.0,0.00016063,2]
[391258741,1760446232826,-151.0,0.00016063,2]
[391258742,1760446232836,-151.0,0.00016063,2]
[391258743,1760446232845,-151.0,0.00016063,2]
[391258744,1760446232854,-151.0,0.00016063,2]
[391258745,1760446232864,-151.0,0.00016063,2]
[391258746,1760446232873,-151.0,0.00016063,2]
[391258747,1760446232884,-151.0,0.00016063,2]
[391258748,1760446232894,-151.0,0.00016063,2]
[391258749,1760446232903,-151.0,0.00016063,2]
[391258750,1760446232912,-151.0,0.00016063,2]
[391258751,1760446232921,-151.0,0.00016063,2]
[391258752,1760446232930,-225.816144,0.00016063,2]
[391258753,1760446232940,-265.58,0.00016072,2]
[391258754,1760446232949,-265.58,0.00016545,2]
[391258755,1760446232958,-1253.71712836,0.00016799,2]
[391258756,1760446232967,-1600.0,0.00016948,2]
[391258757,1760446232977,-200.0,0.00016948,2]
[391258758,1760446232986,-265.58,0.00017018,2]
[391258759,1760446232995,-411.04805492,0.000172,2]
[391258760,1760446233004,-150.00000001,0.0001726,2]
[391258761,1760446233013,-154.12747994,0.0001726,2]
[391258762,1760446233023,-265.58,0.0001749,2]
[391258763,1760446233032,-1680.0,0.00017647,2]
[391258764,1760446233041,-265.58,0.00017963,2]
[391258765,1760446233050,-500.0,0.0001811,2]
[391258766,1760446233059,-544.05,0.00018155,2]
[391258767,1760446233068,-411.04805492,0.0001835,2]
[391258768,1760446233078,-796.01510379,0.00018637,2]
[391258769,1760446233087,-3113.223,0.00018733,2]
[391258770,1760446233096,-1000.0,0.00018733,2]
[391258771,1760446233106,-817.6967,0.00018733,2]
[391258772,1760446233115,-2500.0,0.00018733,2]
[391258773,1760446233123,-577.56427454,0.00018733,2]
[391258774,1760446233135,-203.98154028,0.00018733,2]
[391258775,1760446233145,-5802.79066852,0.00018768,2]
[391258776,1760446233154,-2000.0,0.00018768,2]
[391258777,1760446233163,-721.12765535,0.00018768,2]
[391258778,1760446233173,-2000.0,0.00018768,2]
[391258779,1760446233182,-2000.0,0.00018768,2]
[391258780,1760446233191,-2000.0,0.00018768,2]
[391258781,1760446233200,-2000.0,0.00018768,2]
[391258782,1760446233209,-574.92473347,0.00018768,2]
[391258783,1760446233218,-2000.0,0.00018768,2]
[391258784,1760446233520,-2000.0,0.00018768,2]
[391258785,1760446233539,-2000.0,0.00018768,2]
[391258786,1760446233553,-2000.0,0.00018768,2]
[391258787,1760446233562,-2000.15617386,0.00018768,2]
[391258788,1760446233572,-2000.0,0.00018768,2]
[391258789,1760446233582,-300.0,0.00018768,2]
[391258790,1760446233591,-2000.0,0.00018768,2]
[391258791,1760446233600,-417.12263502,0.00018768,2]
[391258792,1760446233609,-322.6107,0.00018768,2]
[391258793,1760446233619,-1000.0,0.00018768,2]
[391258794,1760446233630,-203.42308055,0.00018768,2]
[391258795,1760446233640,-250.0,0.00018768,2]
[391258796,1760446233650,-250.0,0.00018768,2]
[391258797,1760446233661,-250.0,0.00018768,2]
[391258798,1760446233670,-250.0,0.00018768,2]
[391258799,1760446233680,-2000.0,0.00018768,2]
[391258800,1760446233690,-250.0,0.00018768,2]
[391258801,1760446233699,-2000.0,0.00018768,2]
[391258802,1760446233709,-250.0,0.00018768,2]
[391258803,1760446233719,-2000.0,0.00018768,2]
[391258804,1760446233728,-2000.0,0.00018768,2]
[391258805,1760446233744,-250.0,0.00018768,2]
[391258806,1760446233753,-2000.0,0.00018768,2]
[391258807,1760446233763,-250.0,0.00018768,2]
[391258808,1760446233773,-2000.0,0.00018768,2]
[391258809,1760446233784,-2000.0,0.00018768,2]
[391258810,1760446233794,-2000.0,0.00018768,2]
[391258811,1760446233804,-2000.0,0.00018768,2]
[391258812,1760446233814,-2000.0,0.00018768,2]
[391258813,1760446233825,-2000.0,0.00018768,2]
[391258814,1760446233834,-277.35679052,0.00018768,2]
[391258815,1760446233843,-151.0,0.0001883,2]
[391258816,1760446233853,-644.7922441,0.00018832,2]
[391258817,1760446233864,-269.36287787,0.00018832,2]
[391258818,1760446233873,-1059.3,0.00018832,5]
[391258819,1760446233884,-500.0,0.00018832,2]
[391258820,1760446233893,-500.0,0.00018832,2]
[391258821,1760446233903,-500.0,0.00018832,2]
[391258822,1760446233912,-150.0,0.00018832,2]
[391258823,1760446233922,-10000.0,0.00018832,13]
[391258824,1760446233931,-4999.94845282,0.00018832,13]
[391258825,1760446233943,-65560.2326524,0.00018833,2]
[391258826,1760446234876,-3669.27502503,0.00018833,2]
[391258827,1760446234899,-5084.48560449,0.00018833,2]
[391258828,1760446234911,-376.55368136,0.00018833,2]
[391258829,1760446234952,-500.0,0.00018832,2]
[391258830,1760446234961,-106.48713533,0.00018833,2]
[391258831,1760446234972,-200685.2555834,0.00018833,2]
[391258832,1760446234986,-556.78810256,0.00018833,2]
[391258833,1760446235013,-151.0,0.0001883,2]
[391258834,1760446235022,-340.0360497,0.00018832,2]
[391258835,1760446235034,-159.9639503,0.00018832,2]
[391258836,1760446235043,-182.51920054,0.00018833,2]
[391258837,1760446235062,-500.0,0.00018832,2]
[391258838,1760446235072,-72.77289877,0.00018832,2]
[391258839,1760446235083,-427.22710123,0.00018832,2]
[391258840,1760446235092,-830.18609972,0.00018833,2]
[391258841,1760446235103,-1009.87494404,0.00018833,2]
[391258842,1760446238276,-3350.35798991,0.00018733,2]
[391258843,1760446238288,-887.97158847,0.00018733,2]
[391258844,1760446238298,-151.0,0.0001883,2]
[391258845,1760446238307,-500.0,0.00018832,2]
[391258846,1760446238316,-328.6379013,0.00018832,2]
[391258847,1760446238418,-171.3620987,0.00018832,2]
[391258848,1760446238428,-449.09767896,0.00018832,2]
[391258849,1760446238438,-23030.74095612,0.00018833,2]
[391258936,1760446240123,-2000.0,0.00018733,2]
[391258937,1760446240135,-469.36208084,0.00018833,2]
[391258938,1760446240147,-8131.22788333,0.00018833,2]
[391258939,1760446240180,-988.48750001,0.00018833,2]
[391258940,1760446240240,-3518.99756877,0.00018833,2]
[391258941,1760446240252,-252.636388,0.00018833,2]
[391258942,1760446240352,-206183.09493846,0.00018833,2]
[391258943,1760446240362,-17.82593825,0.00018833,2]
[391258944,1760446240373,-482.17406175,0.00018833,2]
[391258945,1760446240384,-1349.5754942,0.00018833,2]
[391258946,1760446240394,-2911.81044471,0.00018833,2]
[391258947,1760446240405,-6576.41379978,0.00018833,2]
[391258948,1760446240416,-262.37299912,0.00018833,2]
[391258949,1760446240465,-1108.22941123,0.00018833,2]
[391258951,1760446240663,-1.6e-07,0.00018833,2]
[391258953,1760446244108,-500.0,0.00018832,2]
[391258954,1760446244117,-4238.32957833,0.00018832,2]
[391258955,1760446244126,-12483.1480587,0.00018833,2]
[391258956,1760446244136,-38948.52236297,0.00018833,2]
[391258957,1760446244148,-448.80928647,0.00018833,2]
[391258958,1760446244170,-123099.68470726,0.00018833,2]
[391258959,1760446244179,-500.0,0.00018833,2]
[391258960,1760446244188,-300.0,0.00018851,2]
[391258961,1760446244198,-150.0,0.00018851,2]
[391258962,1760446244207,-150.0,0.00018851,2]
[391258963,1760446244216,-150.0,0.00018851,2]
[391258964,1760446244225,-150.0,0.00018851,2]
[391258965,1760446244234,-81381.7404095,0.0001888,2]
[391258966,1760446244244,-3018.0290178,0.0001888,2]
[391258967,1760446244253,-500.0,0.00018887,2]
[391258968,1760446244262,-500.0,0.00018887,2]
[391258969,1760446244271,-602.0373281,0.00018887,2]
[391258970,1760446244280,-150.0,0.00018887,2]
[391258971,1760446244289,-560.11850718,0.000189,2]
[391258972,1760446244298,-2695.65665,0.0001894,2]
[391258973,1760446244307,-500.0,0.00018942,2]
[391258974,1760446244316,-207.29000618,0.00018942,2]
[391258975,1760446244325,-150.0,0.00018942,2]
[391258976,1760446244335,-500.0,0.00018981,2]
[391258977,1760446244344,-2695.65666,0.0001899,2]
[391258978,1760446244354,-380.21118357,0.00018996,2]
[391258979,1760446244363,-153.62294082,0.00018996,2]
[391258980,1760446244372,-151.0,0.00018997,2]
[391258981,1760446244381,-155.0,0.00018999,2]
[391258982,1760446244391,-207591.9178788,0.00019,2]
[391258985,1760446244666,-151.0,0.00019,2]
[391258986,1760446244676,-250.04239216,0.00019,2]
[391258987,1760446244686,-151.0,0.00019,2]
[391258988,1760446244695,-152.713735,0.00019,2]
[391258989,1760446244704,-151.0,0.00019,2]
[391258990,1760446244714,-280.275905,0.00019,2]
[391258991,1760446244724,-151.0,0.00019,2]
[391258992,1760446244736,-153.479528,0.00019,2]
[391258993,1760446244754,-151.0,0.00019,2]
[391258994,1760446244767,-151.0,0.00019,2]
[391258995,1760446244777,-151.214176,0.00019,2]
[391258996,1760446244787,-292.398873,0.00019,2]
[391258997,1760446244800,-161.64607498,0.00019,2]
[391258998,1760446244811,-154.853299,0.00019,2]
[391258999,1760446244827,-151.0,0.00019,2]
[391259000,1760446244837,-151.0,0.00019,2]
[391259001,1760446244847,-151.0,0.00019,2]
[391259002,1760446244856,-151.88386,0.00019,2]
[391259003,1760446244866,-151.0,0.00019,2]
[391259004,1760446244875,-151.0,0.00019,2]
[391259005,1760446244886,-151.0,0.00019,2]
[391259006,1760446244895,-151.0,0.00019,2]
[391259007,1760446244904,-151.0,0.00019,2]
[391259008,1760446244914,-199.56225918,0.00019,2]
[391259009,1760446244923,-151.0,0.00019,2]
[391259010,1760446244933,-151.0,0.00019,2]
[391259011,1760446244943,-151.0,0.00019,2]
[391259012,1760446244952,-152.318234,0.00019,2]
[391259013,1760446244961,-153.069465,0.00019,2]
[391259014,1760446244971,-151.0,0.00019,2]
[391259015,1760446244980,-151.0,0.00019,2]
[391259016,1760446244989,-151.0,0.00019,2]
[391259017,1760446244999,-162.720341,0.00019,2]
[391259018,1760446245008,-179.221998,0.00019,2]
[391259019,1760446245017,-194.561443,0.00019,2]
[391259020,1760446245027,-161.105977,0.00019,2]
[391259021,1760446245036,-161.105977,0.00019,2]
[391259022,1760446245045,-161.105977,0.00019,2]
[391259023,1760446245054,-161.105977,0.00019,2]
[391259024,1760446245064,-152.651034,0.00019,2]
[391259025,1760446245073,-152.240804,0.00019,2]
[391259026,1760446245083,-151.0,0.00019,2]
[391259027,1760446245093,-151.537182,0.00019,2]
[391259028,1760446245104,-151.0,0.00019,2]
[391259029,1760446245114,-4824.778561,0.00019,2]
[391259030,1760446245123,-4824.778561,0.00019,2]
[391259031,1760446245132,-4824.778561,0.00019,2]
[391259032,1760446245146,-4824.778561,0.00019,2]
[391259033,1760446245155,-151.0,0.00019,2]
[391259034,1760446245165,-190.170665,0.00019,2]
[391259035,1760446245174,-151.0,0.00019,2]
[391259036,1760446245184,-190.170665,0.00019,2]
[391259037,1760446245194,-190.170665,0.00019,2]
[391259038,1760446245204,-190.170665,0.00019,2]
[391259039,1760446245213,-151.0,0.00019,2]
[391259040,1760446245223,-191.151548,0.00019,2]
[391259041,1760446245232,-151.0,0.00019,2]
[391259042,1760446245240,-449.766004,0.00019,2]
[391259043,1760446245250,-151.0,0.00019,2]
[391259044,1760446245259,-151.0,0.00019,2]
[391259045,1760446245269,-449.766004,0.00019,2]
[391259046,1760446245278,-449.766004,0.00019,2]
[391259047,1760446245288,-151.0,0.00019,2]
[391259048,1760446245298,-449.766004,0.00019,2]
[391259049,1760446245307,-237.634742,0.00019,2]
[391259050,1760446245316,-152.690523,0.00019,2]
[391259051,1760446245325,-151.760165,0.00019,2]
[391259052,1760446245335,-195.782472,0.00019,2]
[391259053,1760446245344,-151.0,0.00019,2]
[391259054,1760446245354,-151.0,0.00019,2]
[391259055,1760446245363,-151.0,0.00019,2]
[391259056,1760446245373,-151.0,0.00019,2]
[391259057,1760446245382,-151.0,0.00019,2]
[391259058,1760446245395,-151.0,0.00019,2]
[391259059,1760446245404,-189.433584,0.00019,2]
[391259060,1760446245413,-151.0,0.00019,2]
[391259061,1760446245422,-151.0,0.00019,2]
[391259062,1760446245431,-151.0,0.00019,2]
[391259063,1760446245440,-151.0,0.00019,2]
[391259064,1760446245450,-152.71371,0.00019,2]
[391259065,1760446245459,-154.985855,0.00019,2]
[391259066,1760446245469,-151.0,0.00019,2]
[391259067,1760446245478,-151.0,0.00019,2]
[391259068,1760446245488,-180.171611,0.00019,2]
[391259069,1760446245497,-151.0,0.00019,2]
[391259070,1760446245506,-151.0,0.00019,2]
[391259071,1760446245515,-1623.706418,0.00019,2]
[391259072,1760446245525,-1623.706418,0.00019,2]
[391259073,1760446245534,-151.0,0.00019,2]
[391259074,1760446245543,-1623.706418,0.00019,2]
[391259075,1760446245552,-1623.706418,0.00019,2]
[391259076,1760446245561,-151.0,0.00019,2]
[391259077,1760446245571,-151.0,0.00019,2]
[391259078,1760446245580,-151.0,0.00019,2]
[391259079,1760446245589,-373.739791,0.00019,2]
[391259080,1760446245599,-151.0,0.00019,2]
[391259081,1760446245608,-151.0,0.00019,2]
[391259082,1760446245617,-373.739791,0.00019,2]
[391259083,1760446245627,-373.739791,0.00019,2]
[391259084,1760446245637,-152.499995,0.00019,2]
[391259085,1760446245647,-373.739791,0.00019,2]
[391259086,1760446245656,-151.0,0.00019,2]
[391259087,1760446245665,-154.820696,0.00019,2]
[391259088,1760446245675,-151.0,0.00019,2]
[391259089,1760446245684,-151.0,0.00019,2]
[391259090,1760446245694,-151.0,0.00019,2]
[391259091,1760446245703,-353.22781889,0.0001901,7]
[391259092,1760446245713,-577.56427451,0.00019017,2]
[391259093,1760446245723,-1600.0,0.00019067,2]
[391259094,1760446245732,-564.0,0.00019077,2]
[391259095,1760446245743,-181.35668356,0.00019078,2]
[391259096,1760446245754,-2444.5411,0.00019078,2]
[391259097,1760446245763,-500.0,0.00019107,2]
[391259098,1760446245773,-500.0,0.00019107,2]
[391259099,1760446245783,-2695.65666,0.0001912,2]
[391259100,1760446245792,-261.75167389,0.0001913,2]
[391259101,1760446245802,-210.78718767,0.00019168,2]
[391259102,1760446245811,-151.73,0.00019168,2]
[391259103,1760446245823,-1003.66581277,0.0001917,4]
[391259104,1760446245833,-500.0,0.00019173,2]
[391259105,1760446245842,-500.0,0.00019173,2]
[391259106,1760446245852,-500.0,0.00019173,2]
[391259107,1760446245862,-500.0,0.00019173,2]
[391259108,1760446245871,-258.72683921,0.00019175,2]
[391259109,1760446245881,-3999.95,0.00019177,2]
[391259110,1760446245892,-666.0,0.00019177,2]
[391259111,1760446245901,-300.0,0.00019177,2]
[391259112,1760446245911,-292834.14232157,0.00019178,2]
[391259148,1760446246774,-929.23760766,0.00019178,2]
[391259194,1760446247209,-159.64980734,0.00019,2]
[391259196,1760446247219,-232.72869398,0.00019,2]
[391259198,1760446247228,-43277.75636653,0.00019178,2]
[391259200,1760446247239,-193000.0,0.00019178,2]
[391259212,1760446247340,-9783.8839719,0.00019178,2]
[391259215,1760446247351,-2483.00004724,0.00019178,2]
[391259258,1760446320729,150.0,0.00027397,120]
[391259259,1760446343414,150.0,0.00027397,120]
[391259260,1760446397705,500.0,0.00027397,120]
[391259261,1760446406429,2000.0,0.00027397,120]
[391259262,1760446431301,500.0,0.00027397,120]
[391259263,1760446434150,150.0,0.00027397,120]
[391259264,1760446457229,277.81748809,0.00027397,120]
[391259265,1760446469839,3028.31893072,0.0002739,120]
[391259266,1760446497844,500.0,0.00027397,120]
[391259268,1760446526605,300.0,0.00027397,120]
[391259269,1760446561485,1171.0,0.00027397,120]
[391259270,1760446563221,2000.0,0.00027397,120]
[391259273,1760446649306,2500.0,0.00027397,120]
[391259275,1760446685601,3000.0,0.00027397,120]
[391259276,1760446691016,2000.0,0.00027397,120]
[391259293,1760446761255,154.70086544,0.00027397,120]
[391259304,1760446837611,300.0,0.00027397,120]
[391259317,1760446931375,500.0,0.00027397,120]
[391259322,1760446969325,150.0,0.00017997,120]
[391259327,1760446994825,500.0,0.00027397,120]
[391259331,1760447001844,2000.0,0.00027397,120]
[391259334,1760447018240,500.0,0.00027397,120]
[391259339,1760447028080,500.0,0.00027397,120]
[391259348,1760447107440,1265.0,0.00027397,120]
[391259351,1760447134755,219.72,0.00027397,120]
[391259353,1760447145715,402.67293089,0.00027397,120]
[391259356,1760447196533,651.0,0.00027397,120]
[391259366,1760447314761,1868.54217086,0.00027397,120]
[391259380,1760447432342,-150.0,0.00016907,2]
[391259381,1760447432352,-200.0,0.00016907,2]
[391259382,1760447432362,-250.0,0.00017,2]
[391259383,1760447432371,-166.66,0.00017367,2]
[391259384,1760447432380,-150.0,0.00017482,2]
[391259385,1760447432389,-166.66,0.00017733,2]
[391259386,1760447432398,-4726.46,0.00017878,2]
[391259387,1760447432407,-187.32,0.00017995,2]
[391259388,1760447432416,-150.0,0.00017997,2]
[391259389,1760447432425,-1200.0,0.00018007,2]
[391259390,1760447432435,-150.0,0.00018008,2]
[391259391,1760447432444,-4223.4487724,0.00018009,2]
[391259392,1760447432455,-5517.23571349,0.00018009,2]
[391259393,1760447432466,-1921.26551411,0.00018009,2]
[391259394,1760447432475,-1279.90049453,0.00018009,2]
[391259395,1760447432485,-1931.32341625,0.00018009,2]
[391259396,1760447432496,-2739.82360324,0.00018009,2]
[391259397,1760447432519,-4048.94248598,0.00018009,2]
[391259398,1760447432529,-9523.12,0.00018009,2]
[391259399,1760447432538,-8460.93,0.00018009,2]
[391259400,1760447432547,-166.66,0.00018098,2]
[391259401,1760447432557,-278.81,0.00018105,2]
[391259402,1760447432567,-250.0,0.00018158,2]
[391259403,1760447432576,-277.35679052,0.0001819,2]
[391259404,1760447432586,-250.0,0.00018308,7]
[391259405,1760447432595,-166.66,0.00018464,2]
[391259406,1760447432605,-195.0,0.00018598,2]
[391259407,1760447432614,-150.0,0.00018598,2]
[391259408,1760447432624,-1605.0,0.000186,2]
[391259409,1760447432634,-867.82051782,0.00018627,2]
[391259410,1760447432643,-322.6107,0.00018627,2]
[391259411,1760447432654,-1462.08950568,0.00018627,2]
[391259412,1760447432678,-255.54119659,0.00018627,2]
[391259472,1760447438528,-282.36929773,0.00018627,2]
[391259473,1760447438538,-501.63070227,0.00018627,2]
[391259474,1760447438575,-1498.36929773,0.00018627,2]
[391259475,1760447438584,-1150.7806464,0.00018627,2]
[391259636,1760447440319,-849.2193536,0.00018627,2]
[391259638,1760447440328,-985.4638064,0.00018627,2]
[391259644,1760447440376,-1014.5361936,0.00018627,2]
[391259646,1760447440385,-2000.0,0.00018627,2]
[391259648,1760447440395,-835.62710025,0.00018627,2]
[391259650,1760447440404,-166.66,0.00018639,2]
[391259652,1760447440413,-1000.0,0.00018733,2]
[391259654,1760447440423,-784.8481,0.00018733,2]
[391259656,1760447440432,-474.58,0.00018767,2]
[391259658,1760447440441,-474.58,0.00018767,2]
[391259660,1760447440450,-474.58,0.00018767,2]
[391259662,1760447440459,-150.0,0.00018807,2]
[391259664,1760447440469,-150.0,0.00018807,2]
[391259666,1760447440478,-168.17,0.00018807,2]
[391259668,1760447440487,-352.92,0.00018807,2]
[391259670,1760447440496,-2533.7027336,0.00018827,2]
[391259672,1760447440505,-166.66,0.0001883,2]
[391259674,1760447440515,-1776.78966906,0.00018973,2]
[391259676,1760447440524,-463.92268,0.0001899,2]
[391259678,1760447440533,-2000.0,0.00019,2]
[391259680,1760447440542,-1776.78966903,0.00019046,2]
[391259682,1760447440551,-500.0,0.00019072,2]
[391259684,1760447440560,-500.0,0.00019072,2]
[391259686,1760447440570,-500.0,0.00019072,2]
[391259688,1760447440578,-500.0,0.00019072,2]
[391259690,1760447440588,-500.0,0.00019072,2]
[391259692,1760447440597,-500.0,0.00019072,2]
[391259694,1760447440606,-500.0,0.00019072,2]
[391259696,1760447440615,-469.67981736,0.00019072,2]
[391259698,1760447440624,-500.0,0.00019072,2]
[391259700,1760447440633,-500.0,0.00019072,2]
[391259702,1760447440642,-500.0,0.00019072,2]
[391259704,1760447440651,-500.0,0.00019072,2]
[391259706,1760447440662,-285.753,0.00019073,2]
[391259707,1760447440672,-1000.0,0.00019073,2]
[391259709,1760447440680,-15065.82439552,0.00019073,2]
[391259715,1760447440718,-66305.99160448,0.00019073,2]
[391259716,1760447440727,-2500.0,0.00019073,2]
[391259718,1760447440736,-160.44775821,0.00019073,2]
[391259719,1760447440745,-433.1732059,0.00019073,2]
[391259720,1760447440754,-4409.84774244,0.00019073,2]
[391259721,1760447440763,-176.16345216,0.00019078,2]
[391259722,1760447440772,-539.616619,0.00019078,2]
[391259723,1760447440781,-856.58183418,0.00019078,2]
[391259724,1760447440791,-796.0151038,0.00019078,2]
[391259725,1760447440800,-463.92268,0.0001909,2]
[391259726,1760447440809,-4267.0,0.00019093,2]
[391259727,1760447440818,-1000.0,0.000191,2]
[391259728,1760447440827,-1000.0,0.000191,2]
[391259729,1760447440836,-1000.0,0.000191,2]
[391259730,1760447440846,-1032.0,0.000191,2]
[391259731,1760447440855,-1000.0,0.000191,3]
[391259732,1760447440864,-1776.78966903,0.00019118,2]
[391259733,1760447440874,-4409.84774243,0.00019134,2]
[391259734,1760447440883,-210.78718767,0.00019168,2]
[391259735,1760447440893,-151.73,0.00019168,2]
[391259736,1760447440902,-151.0,0.0001917,2]
[391259737,1760447440911,-151.0,0.0001917,2]
[391259738,1760447440921,-183.4671138,0.00019171,5]
[391259739,1760447440931,-500.0,0.00019173,2]
[391259740,1760447440940,-500.0,0.00019173,2]
[391259741,1760447440950,-500.0,0.00019173,2]
[391259743,1760447440959,-339.31532798,0.00019173,2]
[391259745,1760447440968,-500.73964104,0.00019173,2]
[391259747,1760447440977,-500.0,0.00019173,2]
[391259749,1760447440986,-500.0,0.00019173,2]
[391259751,1760447440997,-500.0,0.00019173,2]
[391259753,1760447441007,-500.0,0.00019173,2]
[391259754,1760447441016,-179501.7627146,0.00019173,2]
[391259755,1760447441026,-13299.1350513,0.00019173,2]
[391259756,1760447441035,-111625.9463259,0.00019173,2]
[391259757,1760447441044,-5004.5885972,0.00019173,2]
[391259758,1760447441054,-34839.8421773,0.00019173,2]
[391259759,1760447441063,-500.0,0.00019173,2]
[391259760,1760447441072,-666.0,0.00019177,2]
[391259761,1760447441081,-666.0,0.00019177,2]
[391259762,1760447441091,-150.0,0.00019177,2]
[391259763,1760447441101,-451.35457088,0.00019177,2]
[391259764,1760447441111,-188.55401451,0.00019177,2]
[391259765,1760447441123,-165.94819961,0.00019177,2]
[391259766,1760447441132,-546.74202637,0.00019177,2]
[391259767,1760447441142,-1216180.00018827,0.00019178,2]
[391259768,1760447441164,-400.0,0.00019178,2]
[391259769,1760447441175,-2001.78000016,0.00019178,2]
[391259779,1760447443443,-136200.10443278,0.00019178,2]
[391259780,1760447443454,-500.0,0.00019178,2]
[391259781,1760447443463,-2095.21,0.00019178,2]
[391259782,1760447443472,-794.25,0.00019178,2]
[391259783,1760447443482,-794.25,0.00019178,2]
[391259784,1760447443491,-500.0,0.00019178,2]
[391259785,1760447443501,-500.0,0.00019178,2]
[391259786,1760447443511,-1818.05,0.00019178,2]
[391259787,1760447443520,-1790.2,0.00019178,2]
[391259788,1760447443530,-1323.69,0.00019178,2]
[391259789,1760447443539,-1091.23,0.00019178,2]
[391259790,1760447443548,-500.0,0.00019178,2]
[391259791,1760447443558,-1550.95,0.00019178,2]
[391259792,1760447443567,-637.75,0.00019178,2]
[391259793,1760447443576,-1092.55,0.00019178,2]
[391259794,1760447443585,-1183.51,0.00019178,2]
[391259795,1760447443595,-507.61,0.00019178,2]
[391259796,1760447443604,-692.58,0.00019178,2]
[391259797,1760447443613,-500.0,0.00019178,2]
[391259798,1760447443622,-1493.34,0.00019178,2]
[391259799,1760447443632,-500.0,0.00019178,2]
[391259800,1760447443641,-2183.8,0.00019178,2]
[391259801,1760447443654,-1192.94,0.00019178,2]
[391259802,1760447443664,-1041.5,0.00019178,2]
[391259803,1760447443673,-551.38,0.00019178,2]
[391259804,1760447443683,-1863.23,0.00019178,2]
[391259805,1760447443692,-1415.97,0.00019178,2]
[391259806,1760447443702,-500.0,0.00019178,2]
[391259807,1760447443711,-500.0,0.00019178,2]
[391259808,1760447443720,-1959.55,0.00019178,2]
[391259809,1760447443730,-500.0,0.00019178,2]
[391259810,1760447443739,-1483.63,0.00019178,2]
[391259811,1760447443748,-1421.58,0.00019178,2]
[391259812,1760447443758,-500.0,0.00019178,2]
[391259813,1760447443767,-1830.4,0.00019178,2]
[391259814,1760447443777,-1249.9,0.00019178,2]
[391259815,1760447443786,-847.95,0.00019178,2]